Workbook

Sheet Simulatore
A1: SIMULATORE DI VOTO ELEZIONE DEL CONSIGLIO METROPOLITANO DI VENEZIA - 9 agosto 2015 - (legge 56/2014)
A2: Il simulatore va utilizzato con almeno 2 liste. Inserire i dati utilizzando i campi blu sottolineati.
A3: N. consiglieri da eleggere | D3: lista 1 | E3: lista 2 | F3: lista 3 | G3: lista 4 | H3: lista 5 | I3: lista 6 | J3: lista 7 | K3: lista 8 | L3: lista 9 | M3: lista 10 | N3: =IF(SUM(D4:M4)=0," ",IF(SUM(D4:M4)<$A$4,"Attenzione: inserita una sola lista"," ")) -> 
A4: 18 | B4: Inserire N. canditati di lista ==> | D4: 0 | E4: 0 | F4: 0 | G4: 0 | H4: 0 | I4: 0 | J4: 0 | K4: 0 | L4: 0 | M4: 0
A6: Fasce demografiche | B6: Indici di ponderazione dei voti (presunti) | C6: Colore scheda | D6: N. VOTI (Inserire simulazione di voto) AVVERTENZA: non utilizzare le funzioni di TAGLIA, COPIA ed INCOLLA o il TRASCINAMENTO CELLE per evitare di perdere i controlli sui dati. | O6: Voti espressi per fascia | P6: N. max voti per fascia (al 16 luglio 2015)
A7: fino 3.000 | B7: 30 | C7: AZZURRO | D7: 0 | E7: 0 | F7: 0 | G7: 0 | H7: 0 | I7: 0 | J7: 0 | K7: 0 | L7: 0 | M7: 0 | O7: =IF(SUM($D$7:$M$7)>$P$7,"troppi voti",SUM($D$7:$M$7)) -> 0 | P7: ='Comuni e fasce'!H4 -> 22
A8: da 3.001 a 5.000 | B8: 43 | C8: ARANCIONE | D8: 0 | E8: 0 | F8: 0 | G8: 0 | H8: 0 | I8: 0 | J8: 0 | K8: 0 | L8: 0 | M8: 0 | O8: =IF(SUM($D$8:$M$8)>$P$8,"troppi voti",SUM($D$8:$M$8)) -> 0 | P8: ='Comuni e fasce'!H12 -> 73
A9: da 5.001 a 10.000 | B9: 76 | C9: GRIGIO | D9: 0 | E9: 0 | F9: 0 | G9: 0 | H9: 0 | I9: 0 | J9: 0 | K9: 0 | L9: 0 | M9: 0 | O9: =IF(SUM($D$9:$M$9)>$P$9,"troppi voti",SUM($D$9:$M$9)) -> 0 | P9: ='Comuni e fasce'!H24 -> 126
A10: da 10.001 a 30.000 | B10: 99 | C10: ROSSO | D10: 0 | E10: 0 | F10: 0 | G10: 0 | H10: 0 | I10: 0 | J10: 0 | K10: 0 | L10: 0 | M10: 0 | O10: =IF(SUM($D$10:$M$10)>$P$10,"troppi voti",SUM($D$10:$M$10)) -> 0 | P10: ='Comuni e fasce'!H48 -> 352
A11: da 30.001 a 100.000 | B11: 227 | C11: VERDE | D11: 0 | E11: 0 | F11: 0 | G11: 0 | H11: 0 | I11: 0 | J11: 0 | K11: 0 | L11: 0 | M11: 0 | O11: =IF(SUM($D$11:$M$11)>$P$11,"troppi voti",SUM($D$11:$M$11)) -> 0 | P11: ='Comuni e fasce'!H53 -> 75
A12: da 100.001 a 250.000 | B12: 0 | C12: VIOLA | D12: 0 | E12: 0 | F12: 0 | G12: 0 | H12: 0 | I12: 0 | J12: 0 | K12: 0 | L12: 0 | M12: 0 | O12: =IF(SUM($D$12:$M$12)>$P$12,"troppi voti",SUM($D$12:$M$12)) -> 0 | P12: 0
A13: da 250.001 a 500.000 | B13: 932 | C13: GIALLO | D13: 0 | E13: 0 | F13: 0 | G13: 0 | H13: 0 | I13: 0 | J13: 0 | K13: 0 | L13: 0 | M13: 0 | O13: =IF(SUM($D$13:$M$13)>$P$13,"troppi voti",SUM($D$13:$M$13)) -> 0 | P13: ='Comuni e fasce'!H58 -> 37
A14: da 500.001 a 1.000.000 | B14: 0 | C14: MARRONE | D14: 0 | E14: 0 | F14: 0 | G14: 0 | H14: 0 | I14: 0 | J14: 0 | K14: 0 | L14: 0 | M14: 0 | O14: =IF(SUM($D$14:$M$14)>$P$14,"troppi voti",SUM($D$14:$M$14)) -> 0 | P14: 0
A15: oltre 1.000.000 | B15: 0 | C15: BLU | D15: 0 | E15: 0 | F15: 0 | G15: 0 | H15: 0 | I15: 0 | J15: 0 | K15: 0 | L15: 0 | M15: 0 | O15: =IF(SUM($D$15:$M$15)>$P$15,"troppi voti",SUM($D$15:$M$15)) -> 0 | P15: 0
A16: Voti ottenuti | D16: =IF(D4=0,IF(SUM(D7:D15)>0,"inserire N. candidati di lista",0),SUM((D7:D15))) -> 0 | E16: =IF(E4=0,IF(SUM(E7:E15)>0,"inserire N. candidati di lista",0),SUM((E7:E15))) -> 0 | F16: =IF(F4=0,IF(SUM(F7:F15)>0,"inserire N. candidati di lista",0),SUM((F7:F15))) -> 0 | G16: =IF(G4=0,IF(SUM(G7:G15)>0,"inserire N. candidati di lista",0),SUM((G7:G15))) -> 0 | H16: =IF(H4=0,IF(SUM(H7:H15)>0,"inserire N. candidati di lista",0),SUM((H7:H15))) -> 0 | I16: 0 | J16: =IF(J4=0,IF(SUM(J7:J15)>0,"inserire N. candidati di lista",0),SUM((J7:J15))) -> 0 | K16: =IF(K4=0,IF(SUM(K7:K15)>0,"inserire N. candidati di lista",0),SUM((K7:K15))) -> 0 | L16: =IF(L4=0,IF(SUM(L7:L15)>0,"inserire N. candidati di lista",0),SUM((L7:L15))) -> 0 | M16: =IF(M4=0,IF(SUM(M7:M15)>0,"inserire N. candidati di lista",0),SUM((M7:M15))) -> 0 | N16: Totale voti ottenuti | O16: =SUM(O7:O15) -> 0 | P16: =SUM(P7:P15) -> 685
A17: Risultato ponderato | D17: =(D7*$B$7+D8*$B$8+D9*$B$9+D10*$B$10+D11*$B$11+D12*$B$12+D13*$B$13+D14*$B$14+D15*$B$15) -> 0 | E17: 0 | F17: 0 | G17: 0 | H17: 0 | I17: 0 | J17: 0 | K17: 0 | L17: 0 | M17: 0 | N17: % su votanti | O17: =O16/P16% -> 0
A18: Seggi assegnati per lista: | D18: =D46 -> 0 | E18: =E46 -> 0 | F18: 0 | G18: 0 | H18: 0 | I18: 0 | J18: 0 | K18: 0 | L18: 0 | M18: 0 | N18: Totale seggi | O18: =N46 -> 0 | P18: =O46 -> 
A20: A parità di quoziente il seggio è attribuito alla lista che ha ottenuto la maggiore cifra elettorale e, a parità di quest'ultima, per sorteggio. (ultimo periodo, art. 1 comma 36 legge 56/2014)
A22: Applicazione metodo d'Hondt (art.1 comma 36 legge 56/2012)
B24: Divisori | D24: lista 1 | E24: lista 2 | F24: lista 3 | G24: lista 4 | H24: lista 5 | I24: lista 6 | J24: lista 7 | K24: lista 8 | L24: lista 9 | M24: lista 10
B25: 1 | D25: =D17 -> 0 | E25: =E17 -> 0 | F25: 0 | G25: 0 | H25: 0 | I25: 0 | J25: 0 | K25: 0 | L25: 0 | M25: 0
B26: 2 | D26: =$D$25/B26 -> 0 | E26: =$E$25/B26 -> 0 | F26: =$F$25/B26 -> 0 | G26: =$G$25/B26 -> 0 | H26: =$H$25/B26 -> 0 | I26: =$I$25/B26 -> 0 | J26: =$J$25/B26 -> 0 | K26: =$K$25/B26 -> 0 | L26: =$L$25/B26 -> 0 | M26: =$M$25/B26 -> 0
B27: 3 | D27: =$D$25/B27 -> 0 | E27: 0 | F27: 0 | G27: 0 | H27: 0 | I27: 0 | J27: 0 | K27: 0 | L27: 0 | M27: 0
B28: 4 | D28: 0 | E28: 0 | F28: 0 | G28: 0 | H28: 0 | I28: 0 | J28: 0 | K28: 0 | L28: 0 | M28: 0
B29: 5 | D29: 0 | E29: 0 | F29: 0 | G29: 0 | H29: 0 | I29: 0 | J29: 0 | K29: 0 | L29: 0 | M29: 0
B30: 6 | D30: 0 | E30: 0 | F30: 0 | G30: 0 | H30: 0 | I30: 0 | J30: 0 | K30: 0 | L30: 0 | M30: 0
B31: 7 | D31: 0 | E31: 0 | F31: 0 | G31: 0 | H31: 0 | I31: 0 | J31: 0 | K31: 0 | L31: 0 | M31: 0
B32: 8 | D32: =IF(($D$4<B32),0,($D$25/B32)) -> 0 | E32: =IF(($E$4<B32),0,($E$25/B32)) -> 0 | F32: =IF(($F$4<B32),0,($F$25/B32)) -> 0 | G32: =IF(($G$4<B32),0,($G$25/B32)) -> 0 | H32: =IF(($H$4<B32),0,($H$25/B32)) -> 0 | I32: =IF(($I$4<B32),0,($I$25/B32)) -> 0 | J32: =IF(($J$4<B32),0,($J$25/B32)) -> 0 | K32: =IF(($K$4<B32),0,($K$25/B32)) -> 0 | L32: =IF(($L$4<B32),0,($L$25/B32)) -> 0 | M32: =IF(($M$4<B32),0,($M$25/B32)) -> 0
B33: 9 | D33: 0 | E33: 0 | F33: 0 | G33: 0 | H33: 0 | I33: 0 | J33: 0 | K33: 0 | L33: 0 | M33: 0
B34: 10 | D34: 0 | E34: 0 | F34: 0 | G34: 0 | H34: 0 | I34: 0 | J34: 0 | K34: 0 | L34: 0 | M34: 0
B35: 11 | D35: 0 | E35: 0 | F35: 0 | G35: 0 | H35: 0 | I35: 0 | J35: 0 | K35: 0 | L35: 0 | M35: 0
B36: 12 | D36: 0 | E36: 0 | F36: 0 | G36: 0 | H36: 0 | I36: 0 | J36: 0 | K36: 0 | L36: 0 | M36: 0
B37: 13 | D37: 0 | E37: 0 | F37: 0 | G37: 0 | H37: 0 | I37: 0 | J37: 0 | K37: 0 | L37: 0 | M37: 0
B38: 14 | D38: 0 | E38: 0 | F38: 0 | G38: 0 | H38: 0 | I38: 0 | J38: 0 | K38: 0 | L38: 0 | M38: 0
B39: 15 | D39: 0 | E39: 0 | F39: 0 | G39: 0 | H39: 0 | I39: 0 | J39: 0 | K39: 0 | L39: 0 | M39: 0
B40: 16 | D40: 0 | E40: 0 | F40: 0 | G40: 0 | H40: 0 | I40: 0 | J40: 0 | K40: 0 | L40: 0 | M40: 0
B41: 17 | D41: 0 | E41: 0 | F41: 0 | G41: 0 | H41: 0 | I41: 0 | J41: 0 | K41: 0 | L41: 0 | M41: 0
B42: 18 | D42: 0 | E42: 0 | F42: 0 | G42: 0 | H42: 0 | I42: 0 | J42: 0 | K42: 0 | L42: 0 | M42: 0
N45: TOTALE
A46: SEGGI ASSEGNATI PER LISTA | D46: =IF((D25=0),0,calcoli!D34) -> 0 | E46: =IF((E25=0),0,calcoli!E34) -> 0 | F46: =IF((F25=0),0,calcoli!F34) -> 0 | G46: =IF((G25=0),0,calcoli!G34) -> 0 | H46: =IF((H25=0),0,calcoli!H34) -> 0 | I46: =IF((I25=0),0,calcoli!I34) -> 0 | J46: =IF((J25=0),0,calcoli!J34) -> 0 | K46: =IF((K25=0),0,calcoli!K34) -> 0 | L46: =IF((L25=0),0,calcoli!L34) -> 0 | M46: =IF((M25=0),0,calcoli!M34) -> 0 | N46: =SUM(D46:M46) -> 0 | O46: =IF((calcoli!D31=calcoli!F31),IF(N46>0,"parità di quoziente"," ")," ") -> 
A47: A parità di quoziente il seggio è attribuito alla lista che ha ottenuto la maggiore cifra elettorale e, a parità di quest'ultima, per sorteggio. (ultimo periodo, art. 1 comma 36 legge 56/2014)

Sheet calcoli (hidden)
B2: =IF(Simulatore!D25>Simulatore!B48,"eletto","no") -> no | D2: =Simulatore!D25 -> 0 | E2: =Simulatore!E25 -> 0 | F2: =Simulatore!F25 -> 0 | G2: =Simulatore!G25 -> 0 | H2: =Simulatore!H25 -> 0 | I2: =Simulatore!I25 -> 0 | J2: =Simulatore!J25 -> 0 | K2: =Simulatore!K25 -> 0 | L2: =Simulatore!L25 -> 0 | M2: =Simulatore!M25 -> 0
B3: =IF(Simulatore!D36>Simulatore!B48,"eletto","no") -> no | D3: =Simulatore!D26 -> 0 | E3: =Simulatore!E26 -> 0 | F3: =Simulatore!F26 -> 0 | G3: =Simulatore!G26 -> 0 | H3: =Simulatore!H26 -> 0 | I3: =Simulatore!I26 -> 0 | J3: =Simulatore!J26 -> 0 | K3: =Simulatore!K26 -> 0 | L3: =Simulatore!L26 -> 0 | M3: =Simulatore!M26 -> 0
D4: =Simulatore!D27 -> 0 | E4: =Simulatore!E27 -> 0 | F4: =Simulatore!F27 -> 0 | G4: =Simulatore!G27 -> 0 | H4: =Simulatore!H27 -> 0 | I4: =Simulatore!I27 -> 0 | J4: =Simulatore!J27 -> 0 | K4: =Simulatore!K27 -> 0 | L4: =Simulatore!L27 -> 0 | M4: =Simulatore!M27 -> 0
D5: =Simulatore!D28 -> 0 | E5: =Simulatore!E28 -> 0 | F5: =Simulatore!F28 -> 0 | G5: =Simulatore!G28 -> 0 | H5: =Simulatore!H28 -> 0 | I5: =Simulatore!I28 -> 0 | J5: =Simulatore!J28 -> 0 | K5: =Simulatore!K28 -> 0 | L5: =Simulatore!L28 -> 0 | M5: =Simulatore!M28 -> 0
D6: =Simulatore!D29 -> 0 | E6: =Simulatore!E29 -> 0 | F6: =Simulatore!F29 -> 0 | G6: =Simulatore!G29 -> 0 | H6: =Simulatore!H29 -> 0 | I6: =Simulatore!I29 -> 0 | J6: =Simulatore!J29 -> 0 | K6: =Simulatore!K29 -> 0 | L6: =Simulatore!L29 -> 0 | M6: =Simulatore!M29 -> 0
D7: =Simulatore!D30 -> 0 | E7: =Simulatore!E30 -> 0 | F7: =Simulatore!F30 -> 0 | G7: =Simulatore!G30 -> 0 | H7: =Simulatore!H30 -> 0 | I7: =Simulatore!I30 -> 0 | J7: =Simulatore!J30 -> 0 | K7: =Simulatore!K30 -> 0 | L7: =Simulatore!L30 -> 0 | M7: =Simulatore!M30 -> 0
D8: =Simulatore!D31 -> 0 | E8: =Simulatore!E31 -> 0 | F8: =Simulatore!F31 -> 0 | G8: =Simulatore!G31 -> 0 | H8: =Simulatore!H31 -> 0 | I8: =Simulatore!I31 -> 0 | J8: =Simulatore!J31 -> 0 | K8: =Simulatore!K31 -> 0 | L8: =Simulatore!L31 -> 0 | M8: =Simulatore!M31 -> 0
D9: =Simulatore!D32 -> 0 | E9: =Simulatore!E32 -> 0 | F9: =Simulatore!F32 -> 0 | G9: =Simulatore!G32 -> 0 | H9: =Simulatore!H32 -> 0 | I9: =Simulatore!I32 -> 0 | J9: =Simulatore!J32 -> 0 | K9: =Simulatore!K32 -> 0 | L9: =Simulatore!L32 -> 0 | M9: =Simulatore!M32 -> 0
D10: =Simulatore!D33 -> 0 | E10: =Simulatore!E33 -> 0 | F10: =Simulatore!F33 -> 0 | G10: =Simulatore!G33 -> 0 | H10: =Simulatore!H33 -> 0 | I10: =Simulatore!I33 -> 0 | J10: =Simulatore!J33 -> 0 | K10: =Simulatore!K33 -> 0 | L10: =Simulatore!L33 -> 0 | M10: =Simulatore!M33 -> 0
D11: =Simulatore!D34 -> 0 | E11: =Simulatore!E34 -> 0 | F11: =Simulatore!F34 -> 0 | G11: =Simulatore!G34 -> 0 | H11: =Simulatore!H34 -> 0 | I11: =Simulatore!I34 -> 0 | J11: =Simulatore!J34 -> 0 | K11: =Simulatore!K34 -> 0 | L11: =Simulatore!L34 -> 0 | M11: =Simulatore!M34 -> 0
D12: =Simulatore!D35 -> 0 | E12: =Simulatore!E35 -> 0 | F12: =Simulatore!F35 -> 0 | G12: =Simulatore!G35 -> 0 | H12: =Simulatore!H35 -> 0 | I12: =Simulatore!I35 -> 0 | J12: =Simulatore!J35 -> 0 | K12: =Simulatore!K35 -> 0 | L12: =Simulatore!L35 -> 0 | M12: =Simulatore!M35 -> 0
D13: =Simulatore!D36 -> 0 | E13: =Simulatore!E36 -> 0 | F13: =Simulatore!F36 -> 0 | G13: =Simulatore!G36 -> 0 | H13: =Simulatore!H36 -> 0 | I13: =Simulatore!I36 -> 0 | J13: =Simulatore!J36 -> 0 | K13: =Simulatore!K36 -> 0 | L13: =Simulatore!L36 -> 0 | M13: =Simulatore!M36 -> 0
D14: =Simulatore!D37 -> 0 | E14: =Simulatore!E37 -> 0 | F14: =Simulatore!F37 -> 0 | G14: =Simulatore!G37 -> 0 | H14: =Simulatore!H37 -> 0 | I14: =Simulatore!I37 -> 0 | J14: =Simulatore!J37 -> 0 | K14: =Simulatore!K37 -> 0 | L14: =Simulatore!L37 -> 0 | M14: =Simulatore!M37 -> 0
D15: =Simulatore!D38 -> 0 | E15: =Simulatore!E38 -> 0 | F15: =Simulatore!F38 -> 0 | G15: =Simulatore!G38 -> 0 | H15: =Simulatore!H38 -> 0 | I15: =Simulatore!I38 -> 0 | J15: =Simulatore!J38 -> 0 | K15: =Simulatore!K38 -> 0 | L15: =Simulatore!L38 -> 0 | M15: =Simulatore!M38 -> 0
D16: =Simulatore!D39 -> 0 | E16: =Simulatore!E39 -> 0 | F16: =Simulatore!F39 -> 0 | G16: =Simulatore!G39 -> 0 | H16: =Simulatore!H39 -> 0 | I16: =Simulatore!I39 -> 0 | J16: =Simulatore!J39 -> 0 | K16: =Simulatore!K39 -> 0 | L16: =Simulatore!L39 -> 0 | M16: =Simulatore!M39 -> 0
D17: =Simulatore!D40 -> 0 | E17: =Simulatore!E40 -> 0 | F17: =Simulatore!F40 -> 0 | G17: =Simulatore!G40 -> 0 | H17: =Simulatore!H40 -> 0 | I17: =Simulatore!I40 -> 0 | J17: =Simulatore!J40 -> 0 | K17: =Simulatore!K40 -> 0 | L17: =Simulatore!L40 -> 0 | M17: =Simulatore!M40 -> 0
D18: =Simulatore!D41 -> 0 | E18: =Simulatore!E41 -> 0 | F18: =Simulatore!F41 -> 0 | G18: =Simulatore!G41 -> 0 | H18: =Simulatore!H41 -> 0 | I18: =Simulatore!I41 -> 0 | J18: =Simulatore!J41 -> 0 | K18: =Simulatore!K41 -> 0 | L18: =Simulatore!L41 -> 0 | M18: =Simulatore!M41 -> 0
D19: =Simulatore!D42 -> 0 | E19: =Simulatore!E42 -> 0 | F19: =Simulatore!F42 -> 0 | G19: =Simulatore!G42 -> 0 | H19: =Simulatore!H42 -> 0 | I19: =Simulatore!I42 -> 0 | J19: =Simulatore!J42 -> 0 | K19: =Simulatore!K42 -> 0 | L19: =Simulatore!L42 -> 0 | M19: =Simulatore!M42 -> 0
D31: =LARGE(D2:M19,Simulatore!A4) -> 0 | F31: =LARGE(D2:M19,Simulatore!A4+1) -> 0
D34: =COUNTIF(D2:D25,">="&$D$31) -> 18 | E34: =COUNTIF(E2:E25,">="&$D$31) -> 18 | F34: 18 | G34: 18 | H34: 18 | I34: 18 | J34: 18 | K34: 18 | L34: 18 | M34: 18 | O34: =SUM(D34:N34) -> 180

Sheet Preferenze lista 1
A1: SIMULATORE DI VOTO PREFERENZE ELEZIONE DEL CONSIGLIO METROPOLITANO DI VENEZIA - 9 agosto 2015 - (legge 56/2014)
D2: E' possibile personalizzare inserendo i nominativi dei candidati di lista nelle celle sottostanti, ove indicato dalla freccia.
A3: LISTA 1 | B3: Voti di lista | C3: =Simulatore!D16 -> 0
B4: Seggi assegnati | C4: =Simulatore!D46 -> 0 | D4: =IF(D7>$C$5," ","Candid.") ->  | K4: =IF(K7>$C$5," ","Candid.") ->  | M4: =IF(M7>$C$5," ","Candid.") ->  | N4: =IF(N7>$C$5," ","Candid.") ->  | O4: =IF(O7>$C$5," ","Candid.") -> 
B5: N. Candidati | C5: =Simulatore!D4 -> 0 | D5: =IF(D7>$C$5," ",D7) ->  | N5: =IF(N7>$C$5," ",N7) ->  | O5: =IF(O7>$C$5," ",O7) ->  | P5: =IF(P7>$C$5," ",P7) -> 
B6: Nominativi
D7: 1 | E7: 2 | F7: 3 | G7: 4 | H7: 5 | I7: 6 | J7: 7 | K7: 8 | L7: 9 | M7: 10 | N7: 11 | O7: 12 | P7: 13 | Q7: 14 | R7: 15 | S7: 16 | T7: 17 | U7: 18
A8: Fasce demografiche | B8: Indici di ponderazione dei voti (presunti) | C8: Colore scheda | D8: N. PREFERENZE PER CANDIDATO (Inserire simulazione del voto di preferenza) AVVERTENZA: non utilizzare le funzioni di TAGLIA, COPIA ed INCOLLA o il TRASCINAMENTO CELLE per evitare di perdere i controlli sui dati. | W8: Voti ottenuti dalla lista
A9: fino 3.000 | B9: 30 | C9: AZZURRO | D9: 0 | E9: 0 | F9: 0 | G9: 0 | H9: 0 | I9: 0 | J9: 0 | K9: 0 | L9: 0 | M9: 0 | N9: 0 | O9: 0 | P9: 0 | Q9: 0 | R9: 0 | S9: 0 | T9: 0 | U9: 0 | W9: =Simulatore!D7 -> 0
A10: da 3.001 a 5.000 | B10: 43 | C10: ARANCIONE | D10: 0 | E10: 0 | F10: 0 | G10: 0 | H10: 0 | I10: 0 | J10: 0 | K10: 0 | L10: 0 | M10: 0 | N10: 0 | O10: 0 | P10: 0 | Q10: 0 | R10: 0 | S10: 0 | T10: 0 | U10: 0 | W10: =Simulatore!D8 -> 0
A11: da 5.001 a 10.000 | B11: 76 | C11: GRIGIO | D11: 0 | E11: 0 | F11: 0 | G11: 0 | H11: 0 | I11: 0 | J11: 0 | K11: 0 | L11: 0 | M11: 0 | N11: 0 | O11: 0 | P11: 0 | Q11: 0 | R11: 0 | S11: 0 | T11: 0 | U11: 0 | W11: =Simulatore!D9 -> 0
A12: da 10.001 a 30.000 | B12: 99 | C12: ROSSO | D12: 0 | E12: 0 | F12: 0 | G12: 0 | H12: 0 | I12: 0 | J12: 0 | K12: 0 | L12: 0 | M12: 0 | N12: 0 | O12: 0 | P12: 0 | Q12: 0 | R12: 0 | S12: 0 | T12: 0 | U12: 0 | W12: =Simulatore!D10 -> 0
A13: da 30.001 a 100.000 | B13: 227 | C13: VERDE | D13: 0 | E13: 0 | F13: 0 | G13: 0 | H13: 0 | I13: 0 | J13: 0 | K13: 0 | L13: 0 | M13: 0 | N13: 0 | O13: 0 | P13: 0 | Q13: 0 | R13: 0 | S13: 0 | T13: 0 | U13: 0 | W13: =Simulatore!D11 -> 0
A14: da 100.001 a 250.000 | B14: 0 | C14: VIOLA | D14: 0 | E14: 0 | F14: 0 | G14: 0 | H14: 0 | I14: 0 | J14: 0 | K14: 0 | L14: 0 | M14: 0 | N14: 0 | O14: 0 | P14: 0 | Q14: 0 | R14: 0 | S14: 0 | T14: 0 | U14: 0 | W14: =Simulatore!D12 -> 0
A15: da 250.001 a 500.000 | B15: 932 | C15: GIALLO | D15: 0 | E15: 0 | F15: 0 | G15: 0 | H15: 0 | I15: 0 | J15: 0 | K15: 0 | L15: 0 | M15: 0 | N15: 0 | O15: 0 | P15: 0 | Q15: 0 | R15: 0 | S15: 0 | T15: 0 | U15: 0 | W15: =Simulatore!D13 -> 0
A16: da 500.001 a 1.000.000 | B16: 0 | C16: MARRONE | D16: 0 | E16: 0 | F16: 0 | G16: 0 | H16: 0 | I16: 0 | J16: 0 | K16: 0 | L16: 0 | M16: 0 | N16: 0 | O16: 0 | P16: 0 | Q16: 0 | R16: 0 | S16: 0 | T16: 0 | U16: 0 | W16: =Simulatore!D14 -> 0
A17: oltre 1.000.000 | B17: 0 | C17: BLU | D17: 0 | E17: 0 | F17: 0 | G17: 0 | H17: 0 | I17: 0 | J17: 0 | K17: 0 | L17: 0 | M17: 0 | N17: 0 | O17: 0 | P17: 0 | Q17: 0 | R17: 0 | S17: 0 | T17: 0 | U17: 0 | W17: =Simulatore!D15 -> 0
V18: Voti di lista | W18: =SUM(W9:W17) -> 0
B19: N. preferenze ottenute per candidato | D19: =SUM(D9:D17) -> 0 | E19: =SUM(E9:E17) -> 0 | F19: 0 | G19: 0 | H19: 0 | I19: 0 | J19: 0 | K19: 0 | L19: 0 | M19: 0 | N19: 0 | O19: 0 | P19: 0 | Q19: 0 | R19: 0 | S19: 0 | T19: 0 | U19: 0 | V19: Totale preferenze epresse | W19: =SUM(D19:U19) -> 0
B20: Cifra individuale ponderata | D20: =(D9*$B$9+D10*$B$10+D11*$B$11+D12*$B$12+D13*$B$13+D14*$B$14+D15*$B$15+D16*$B$16+D17*$B$17) -> 0 | E20: 0 | F20: 0 | G20: 0 | H20: 0 | I20: 0 | J20: 0 | K20: 0 | L20: 0 | M20: 0 | N20: 0 | O20: 0 | P20: 0 | Q20: 0 | R20: 0 | S20: 0 | T20: 0 | U20: 0
B21: =IF($C$4+1=19,0,LARGE(D20:U20,$C$4+1)) -> 0 | C21: =LARGE(D20:U20,$C$4) ->  | D21: =IF(D20>=$C$21,IF(D20>$C$21,"ELETTO",IF(($B$21=$C$21),"parità","ELETTO")),"non eletto") ->  | E21: =IF(E20>=$C$21,IF(E20>$C$21,"ELETTO",IF(($B$21=$C$21),"parità","ELETTO")),"non eletto") ->  | F21: =IF(F20>=$C$21,IF(F20>$C$21,"ELETTO",IF(($B$21=$C$21),"parità","ELETTO")),"non eletto") -> 
D23: A parità di cifra individuale ponderata, e' proclamato eletto il candidato appartenente al sesso meno rappresentato tra gli eletti della lista; in caso di ulteriore parita', e' proclamato eletto il candidato più giovane (art. 1 comma 38 legge 56/2014)

Sheet Preferenze lista 2
A1: SIMULATORE DI VOTO PREFERENZE ELEZIONE DEL CONSIGLIO METROPOLITANO DI VENEZIA - 9 agosto 2015 - (legge 56/2014)
D2: E' possibile personalizzare inserendo i nominativi dei candidati di lista nelle celle sottostanti, ove indicato dalla freccia.
A3: LISTA 2 | B3: Voti di lista | C3: =Simulatore!E16 -> 0
B4: Seggi assegnati | C4: =Simulatore!E46 -> 0 | D4: =IF(D7>$C$5," ","Candid.") ->  | M4: =IF(M7>$C$5," ","Candid.") ->  | N4: =IF(N7>$C$5," ","Candid.") ->  | O4: =IF(O7>$C$5," ","Candid.") -> 
B5: N. Candidati | C5: =Simulatore!E4 -> 0 | D5: =IF(D7>$C$5," ",D7) ->  | N5: =IF(N7>$C$5," ",N7) ->  | O5: =IF(O7>$C$5," ",O7) ->  | P5: =IF(P7>$C$5," ",P7) -> 
B6: Nominativi
D7: 1 | E7: 2 | F7: 3 | G7: 4 | H7: 5 | I7: 6 | J7: 7 | K7: 8 | L7: 9 | M7: 10 | N7: 11 | O7: 12 | P7: 13 | Q7: 14 | R7: 15 | S7: 16 | T7: 17 | U7: 18
A8: Fasce demografiche | B8: Indici di ponderazione dei voti (presunti) | C8: Colore scheda | D8: N. PREFERENZE PER CANDIDATO (Inserire simulazione del voto di preferenza) AVVERTENZA: non utilizzare le funzioni di TAGLIA, COPIA ed INCOLLA o il TRASCINAMENTO CELLE per evitare di perdere i controlli sui dati. | W8: Voti ottenuti dalla lista
A9: fino 3.000 | B9: 30 | C9: AZZURRO | D9: 0 | E9: 0 | F9: 0 | G9: 0 | H9: 0 | I9: 0 | J9: 0 | K9: 0 | L9: 0 | M9: 0 | N9: 0 | O9: 0 | P9: 0 | Q9: 0 | R9: 0 | S9: 0 | T9: 0 | U9: 0 | W9: =Simulatore!E7 -> 0
A10: da 3.001 a 5.000 | B10: 43 | C10: ARANCIONE | D10: 0 | E10: 0 | F10: 0 | G10: 0 | H10: 0 | I10: 0 | J10: 0 | K10: 0 | L10: 0 | M10: 0 | N10: 0 | O10: 0 | P10: 0 | Q10: 0 | R10: 0 | S10: 0 | T10: 0 | U10: 0 | W10: =Simulatore!E8 -> 0
A11: da 5.001 a 10.000 | B11: 76 | C11: GRIGIO | D11: 0 | E11: 0 | F11: 0 | G11: 0 | H11: 0 | I11: 0 | J11: 0 | K11: 0 | L11: 0 | M11: 0 | N11: 0 | O11: 0 | P11: 0 | Q11: 0 | R11: 0 | S11: 0 | T11: 0 | U11: 0 | W11: =Simulatore!E9 -> 0
A12: da 10.001 a 30.000 | B12: 99 | C12: ROSSO | D12: 0 | E12: 0 | F12: 0 | G12: 0 | H12: 0 | I12: 0 | J12: 0 | K12: 0 | L12: 0 | M12: 0 | N12: 0 | O12: 0 | P12: 0 | Q12: 0 | R12: 0 | S12: 0 | T12: 0 | U12: 0 | W12: =Simulatore!E10 -> 0
A13: da 30.001 a 100.000 | B13: 227 | C13: VERDE | D13: 0 | E13: 0 | F13: 0 | G13: 0 | H13: 0 | I13: 0 | J13: 0 | K13: 0 | L13: 0 | M13: 0 | N13: 0 | O13: 0 | P13: 0 | Q13: 0 | R13: 0 | S13: 0 | T13: 0 | U13: 0 | W13: =Simulatore!E11 -> 0
A14: da 100.001 a 250.000 | B14: 0 | C14: VIOLA | D14: 0 | E14: 0 | F14: 0 | G14: 0 | H14: 0 | I14: 0 | J14: 0 | K14: 0 | L14: 0 | M14: 0 | N14: 0 | O14: 0 | P14: 0 | Q14: 0 | R14: 0 | S14: 0 | T14: 0 | U14: 0 | W14: =Simulatore!E12 -> 0
A15: da 250.001 a 500.000 | B15: 932 | C15: GIALLO | D15: 0 | E15: 0 | F15: 0 | G15: 0 | H15: 0 | I15: 0 | J15: 0 | K15: 0 | L15: 0 | M15: 0 | N15: 0 | O15: 0 | P15: 0 | Q15: 0 | R15: 0 | S15: 0 | T15: 0 | U15: 0 | W15: =Simulatore!E13 -> 0
A16: da 500.001 a 1.000.000 | B16: 0 | C16: MARRONE | D16: 0 | E16: 0 | F16: 0 | G16: 0 | H16: 0 | I16: 0 | J16: 0 | K16: 0 | L16: 0 | M16: 0 | N16: 0 | O16: 0 | P16: 0 | Q16: 0 | R16: 0 | S16: 0 | T16: 0 | U16: 0 | W16: =Simulatore!E14 -> 0
A17: oltre 1.000.000 | B17: 0 | C17: BLU | D17: 0 | E17: 0 | F17: 0 | G17: 0 | H17: 0 | I17: 0 | J17: 0 | K17: 0 | L17: 0 | M17: 0 | N17: 0 | O17: 0 | P17: 0 | Q17: 0 | R17: 0 | S17: 0 | T17: 0 | U17: 0 | W17: =Simulatore!E15 -> 0
V18: Voti di lista | W18: =SUM(W9:W17) -> 0
B19: N. preferenze ottenute per candidato | D19: =SUM(D9:D17) -> 0 | E19: =SUM(E9:E17) -> 0 | F19: 0 | G19: 0 | H19: 0 | I19: 0 | J19: 0 | K19: 0 | L19: 0 | M19: 0 | N19: 0 | O19: 0 | P19: 0 | Q19: 0 | R19: 0 | S19: 0 | T19: 0 | U19: 0 | V19: Totale preferenze epresse | W19: =SUM(D19:U19) -> 0
B20: Cifra individuale ponderata | D20: =(D9*$B$9+D10*$B$10+D11*$B$11+D12*$B$12+D13*$B$13+D14*$B$14+D15*$B$15+D16*$B$16+D17*$B$17) -> 0 | E20: 0 | F20: 0 | G20: 0 | H20: 0 | I20: 0 | J20: 0 | K20: 0 | L20: 0 | M20: 0 | N20: 0 | O20: 0 | P20: 0 | Q20: 0 | R20: 0 | S20: 0 | T20: 0 | U20: 0
B21: =IF($C$4+1=19,0,LARGE(D20:U20,$C$4+1)) -> 0 | C21: =LARGE(D20:U20,$C$4) ->  | D21: =IF(D20>=$C$21,IF(D20>$C$21,"ELETTO",IF(($B$21=$C$21),"parità","ELETTO")),"non eletto") ->  | E21: =IF(E20>=$C$21,IF(E20>$C$21,"ELETTO",IF(($B$21=$C$21),"parità","ELETTO")),"non eletto") ->  | F21: =IF(F20>=$C$21,IF(F20>$C$21,"ELETTO",IF(($B$21=$C$21),"parità","ELETTO")),"non eletto") -> 
D23: A parità di cifra individuale ponderata, e' proclamato eletto il candidato appartenente al sesso meno rappresentato tra gli eletti della lista; in caso di ulteriore parita', e' proclamato eletto il candidato più giovane (art. 1 comma 38 legge 56/2014)

Sheet Preferenze lista 3
A1: SIMULATORE DI VOTO PREFERENZE ELEZIONE DEL CONSIGLIO METROPOLITANO DI VENEZIA - 9 agosto 2015 - (legge 56/2014)
D2: E' possibile personalizzare inserendo i nominativi dei candidati di lista nelle celle sottostanti, ove indicato dalla freccia.
A3: LISTA 3 | B3: Voti di lista | C3: =Simulatore!F16 -> 0
B4: Seggi assegnati | C4: =Simulatore!F46 -> 0 | D4: =IF(D7>$C$5," ","Candid.") ->  | M4: =IF(M7>$C$5," ","Candid.") ->  | N4: =IF(N7>$C$5," ","Candid.") ->  | O4: =IF(O7>$C$5," ","Candid.") -> 
B5: N. Candidati | C5: =Simulatore!F4 -> 0 | D5: =IF(D7>$C$5," ",D7) ->  | N5: =IF(N7>$C$5," ",N7) ->  | O5: =IF(O7>$C$5," ",O7) ->  | P5: =IF(P7>$C$5," ",P7) -> 
B6: Nominativi
D7: 1 | E7: 2 | F7: 3 | G7: 4 | H7: 5 | I7: 6 | J7: 7 | K7: 8 | L7: 9 | M7: 10 | N7: 11 | O7: 12 | P7: 13 | Q7: 14 | R7: 15 | S7: 16 | T7: 17 | U7: 18
A8: Fasce demografiche | B8: Indici di ponderazione dei voti (presunti) | C8: Colore scheda | D8: N. PREFERENZE PER CANDIDATO (Inserire simulazione del voto di preferenza) AVVERTENZA: non utilizzare le funzioni di TAGLIA, COPIA ed INCOLLA o il TRASCINAMENTO CELLE per evitare di perdere i controlli sui dati. | W8: Voti ottenuti dalla lista
A9: fino 3.000 | B9: 30 | C9: AZZURRO | D9: 0 | E9: 0 | F9: 0 | G9: 0 | H9: 0 | I9: 0 | J9: 0 | K9: 0 | L9: 0 | M9: 0 | N9: 0 | O9: 0 | P9: 0 | Q9: 0 | R9: 0 | S9: 0 | T9: 0 | U9: 0 | W9: =Simulatore!F7 -> 0
A10: da 3.001 a 5.000 | B10: 43 | C10: ARANCIONE | D10: 0 | E10: 0 | F10: 0 | G10: 0 | H10: 0 | I10: 0 | J10: 0 | K10: 0 | L10: 0 | M10: 0 | N10: 0 | O10: 0 | P10: 0 | Q10: 0 | R10: 0 | S10: 0 | T10: 0 | U10: 0 | W10: =Simulatore!F8 -> 0
A11: da 5.001 a 10.000 | B11: 76 | C11: GRIGIO | D11: 0 | E11: 0 | F11: 0 | G11: 0 | H11: 0 | I11: 0 | J11: 0 | K11: 0 | L11: 0 | M11: 0 | N11: 0 | O11: 0 | P11: 0 | Q11: 0 | R11: 0 | S11: 0 | T11: 0 | U11: 0 | W11: =Simulatore!F9 -> 0
A12: da 10.001 a 30.000 | B12: 99 | C12: ROSSO | D12: 0 | E12: 0 | F12: 0 | G12: 0 | H12: 0 | I12: 0 | J12: 0 | K12: 0 | L12: 0 | M12: 0 | N12: 0 | O12: 0 | P12: 0 | Q12: 0 | R12: 0 | S12: 0 | T12: 0 | U12: 0 | W12: =Simulatore!F10 -> 0
A13: da 30.001 a 100.000 | B13: 227 | C13: VERDE | D13: 0 | E13: 0 | F13: 0 | G13: 0 | H13: 0 | I13: 0 | J13: 0 | K13: 0 | L13: 0 | M13: 0 | N13: 0 | O13: 0 | P13: 0 | Q13: 0 | R13: 0 | S13: 0 | T13: 0 | U13: 0 | W13: =Simulatore!F11 -> 0
A14: da 100.001 a 250.000 | B14: 0 | C14: VIOLA | D14: 0 | E14: 0 | F14: 0 | G14: 0 | H14: 0 | I14: 0 | J14: 0 | K14: 0 | L14: 0 | M14: 0 | N14: 0 | O14: 0 | P14: 0 | Q14: 0 | R14: 0 | S14: 0 | T14: 0 | U14: 0 | W14: =Simulatore!F12 -> 0
A15: da 250.001 a 500.000 | B15: 932 | C15: GIALLO | D15: 0 | E15: 0 | F15: 0 | G15: 0 | H15: 0 | I15: 0 | J15: 0 | K15: 0 | L15: 0 | M15: 0 | N15: 0 | O15: 0 | P15: 0 | Q15: 0 | R15: 0 | S15: 0 | T15: 0 | U15: 0 | W15: =Simulatore!F13 -> 0
A16: da 500.001 a 1.000.000 | B16: 0 | C16: MARRONE | D16: 0 | E16: 0 | F16: 0 | G16: 0 | H16: 0 | I16: 0 | J16: 0 | K16: 0 | L16: 0 | M16: 0 | N16: 0 | O16: 0 | P16: 0 | Q16: 0 | R16: 0 | S16: 0 | T16: 0 | U16: 0 | W16: =Simulatore!F14 -> 0
A17: oltre 1.000.000 | B17: 0 | C17: BLU | D17: 0 | E17: 0 | F17: 0 | G17: 0 | H17: 0 | I17: 0 | J17: 0 | K17: 0 | L17: 0 | M17: 0 | N17: 0 | O17: 0 | P17: 0 | Q17: 0 | R17: 0 | S17: 0 | T17: 0 | U17: 0 | W17: =Simulatore!F15 -> 0
V18: Voti di lista | W18: =SUM(W9:W17) -> 0
B19: N. preferenze ottenute per candidato | D19: =SUM(D9:D17) -> 0 | E19: =SUM(E9:E17) -> 0 | F19: 0 | G19: 0 | H19: 0 | I19: 0 | J19: 0 | K19: 0 | L19: 0 | M19: 0 | N19: 0 | O19: 0 | P19: 0 | Q19: 0 | R19: 0 | S19: 0 | T19: 0 | U19: 0 | V19: Totale preferenze epresse | W19: =SUM(D19:U19) -> 0
B20: Cifra individuale ponderata | D20: =(D9*$B$9+D10*$B$10+D11*$B$11+D12*$B$12+D13*$B$13+D14*$B$14+D15*$B$15+D16*$B$16+D17*$B$17) -> 0 | E20: 0 | F20: 0 | G20: 0 | H20: 0 | I20: 0 | J20: 0 | K20: 0 | L20: 0 | M20: 0 | N20: 0 | O20: 0 | P20: 0 | Q20: 0 | R20: 0 | S20: 0 | T20: 0 | U20: 0
B21: =IF($C$4+1=19,0,LARGE(D20:U20,$C$4+1)) -> 0 | C21: =LARGE(D20:U20,$C$4) ->  | D21: =IF(D20>=$C$21,IF(D20>$C$21,"ELETTO",IF(($B$21=$C$21),"parità","ELETTO")),"non eletto") ->  | E21: =IF(E20>=$C$21,IF(E20>$C$21,"ELETTO",IF(($B$21=$C$21),"parità","ELETTO")),"non eletto") ->  | F21: =IF(F20>=$C$21,IF(F20>$C$21,"ELETTO",IF(($B$21=$C$21),"parità","ELETTO")),"non eletto") -> 
D23: A parità di cifra individuale ponderata, e' proclamato eletto il candidato appartenente al sesso meno rappresentato tra gli eletti della lista; in caso di ulteriore parita', e' proclamato eletto il candidato più giovane (art. 1 comma 38 legge 56/2014)

Sheet Comuni e fasce
B1: FASCE DEMOGRAFICHE | C1: N. COMUNI | E1: COMUNI | G1: INDICE PONDERAZIONE | H1: Numero consiglieri e sindaci
A2: a | B2: fino a 3.000 | C2: 2 | D2: 1 | E2: GRUARO | F2: 2802 | G2: 30 | H2: 11
D3: 2 | E3: TEGLIO VENETO | F3: 2325 | H3: 11
E4: totale | F4: =SUM(F2:F3) -> 5127 | G4: totale | H4: =SUM(H2:H3) -> 22
A6: b | B6: da 3.001 a 5.000 | C6: 6 | D6: 1 | E6: ANNONE VENETO | F6: 3976 | G6: 43 | H6: 13
D7: 2 | E7: CINTO CAOMAGGIORE | F7: 3285 | H7: 13
D8: 3 | E8: CONA | F8: 3175 | H8: 13
D9: 4 | E9: FOSSALTA DI PIAVE | F9: 4214 | H9: 13
D10: 5 | E10: PRAMAGGIORE | F10: 4640 | H10: 8
D11: 6 | E11: TORRE DI MOSTO | F11: 4739 | H11: 13
E12: totale | F12: =SUM(F6:F11) -> 24029 | G12: totale | H12: =SUM(H6:H11) -> 73
A14: c | B14: da 5.001 a 10.000 | C14: 10 | D14: 1 | E14: CAMPAGNA LUPIA | F14: 6936 | G14: 76 | H14: 11
D15: 2 | E15: CEGGIA | F15: 6213 | H15: 13
D16: 3 | E16: FIESSO D'ARTICO | F16: 7728 | H16: 13
D17: 4 | E17: FOSSALTA DI PORTOGRUARO | F17: 6075 | H17: 13
D18: 5 | E18: FOSSO' | F18: 6786 | H18: 13
D19: 6 | E19: MEOLO | F19: 6465 | H19: 13
D20: 7 | E20: NOVENTA DI PIAVE | F20: 6843 | H20: 11
D21: 8 | E21: QUARTO D'ALTINO | F21: 8199 | H21: 13
D22: 9 | E22: STRA | F22: 7566 | H22: 13
D23: 10 | E23: VIGONOVO | F23: 9892 | H23: 13
E24: totale | F24: =SUM(F14:F23) -> 72703 | G24: totale | H24: =SUM(H14:H23) -> 126
A26: d | B26: da 10.001 a 30.000 | C26: 22 | D26: 1 | E26: CAMPOLONGO MAGGIORE | F26: 10342 | G26: 99 | H26: 13
D27: 2 | E27: CAMPONOGARA | F27: 12920 | H27: 17
D28: 3 | E28: CAORLE | F28: 0 | H28: 0 | I28: Commissariato
D29: 4 | E29: CAVALLINO-TREPORTI | F29: 13162 | H29: 17
D30: 5 | E30: CAVARZERE | F30: 14816 | H30: 17
D31: 6 | E31: CONCORDIA SAGITTARIA | F31: 10640 | H31: 17
D32: 7 | E32: DOLO | F32: 14982 | H32: 17
D33: 8 | E33: ERACLEA | F33: 12689 | H33: 17
D34: 9 | E34: JESOLO | F34: 24479 | H34: 17
D35: 10 | E35: MARCON | F35: 16215 | H35: 17
D36: 11 | E36: MARTELLAGO | F36: 21171 | H36: 17
D37: 12 | E37: MIRANO | F37: 26456 | H37: 17
D38: 13 | E38: MUSILE DI PIAVE | F38: 11518 | H38: 16
D39: 14 | E39: NOALE | F39: 15708 | H39: 17
D40: 15 | E40: PIANIGA | F40: 11968 | H40: 17
D41: 16 | E41: PORTOGRUARO | F41: 25140 | H41: 17
D42: 17 | E42: SALZANO | F42: 12678 | H42: 17
D43: 18 | E43: S. MICHELE AL TAGLIAMENTO | F43: 12028 | H43: 17
D44: 19 | E44: S. STINO DI LIVENZA | F44: 13042 | H44: 17
D45: 20 | E45: S. MARIA DI SALA | F45: 17295 | H45: 17
D46: 21 | E46: SCORZE' | F46: 18904 | H46: 17
D47: 22 | E47: SPINEA | F47: 26862 | H47: 17
E48: totale | F48: =SUM(F26:F47) -> 343015 | G48: totale | H48: =SUM(H26:H47) -> 352
A50: e | B50: da 30.001 a 100.000 | C50: 3 | D50: 1 | E50: CHIOGGIA | F50: 49735 | G50: 227 | H50: 25
D51: 2 | E51: MIRA | F51: 38552 | H51: 25
D52: 3 | E52: S. DONA' DI PIAVE | F52: 40646 | H52: 25
E53: totale | F53: =SUM(F50:F52) -> 128933 | G53: totale | H53: =SUM(H50:H52) -> 75
A55: f | B55: da 100.001 a 250.000 | C55: 0
A57: g | B57: da 250.001 a 500.000 | C57: 1 | D57: 1 | E57: VENEZIA | F57: 261362 | G57: 932 | H57: 37
F58: =SUM(F57) -> 261362 | G58: totale | H58: =SUM(H57) -> 37
A60: h | B60: da 500.001 a 1.000.000 | C60: 0 | G60: tot | H60: =H4+H12+H24+H48+H53+H58 -> 685
A62: i | B62: oltre 1.000.001 | C62: 0
C64: totale comuni | D64: =C2+C6+C14+C26+C50+C57 -> 44 | E64: totale popolazione provincia | F64: =(F4+F12+F24+F48+F53+F58) -> 835169 | H64: (tolti comuni commissariati)
